Workbook

Sheet introduction
B2: For correct functioning of this document, support of Visual Basic for Applications is required.
B3: So please confirm 'enable macros' when a safety warning pops up.
B4: For more details on the application of 'B-compass fish', please refer to the manual:
B6: B-compass fish, version 1.2 (April 2021):
B7: This file represents a tool for calculation of fish bioconcentration factors (BCFs). For the calculation, two BCF
B8: model variants are implemented:
B9: - a simple one-compartment model
B10: - and a more complex steady state multi-compartment model.
B11: Both models calculate the BCF from uptake and elimination rate constants. The uptake rate constant k1 reflects
B12: the uptake of the chemical via the gills, the elimination is a combination of elimination via ventilation, fecal
B13: egestion and biotransformation.
B14: For the calculation, information on the chemical's partition properties are required. The partition properties of
B15: a chemical can either be estimated from KOW-correlations or via poly-parameter free energy relationships
B16: (ppLFERs), we thus offer two versions of this file. This version is the one that uses ppLFERs.
B18: For the user, the following three sheets are most essential:
B19: - compound input data sheet (partition information & in vitro biotransformation data need to be entered)
B20: - organism input data sheet (bodyweight of modeled fish and temperature need to be entered)
B21: - BCF sheet (presents results of the calculations & supporting graphs)
B23: All background calculations (i.e. how the required rate constants are calculated from the given input data)
B24: are shown in the additional sheets so that interested users can understand the calculation methods. These
B25: sheets require no modification by the user.
B26: Furthermore, there is a sheet that also allows calculation of bioaccumulation factors (BAFs).
B27: Finally there is a reference and a glossary sheet summarizing the used variable names.
B30: Note: Users may modify this sheet according to their needs. We thus recommend that new users do not accept this file
B31: from third parties, but always download it as an original copy from www.ufz.de/b-compass-fish.
B32: Feel free to share any problems, suggestions, wishes or success with us!

Sheet compound input data
B1: INPUT PARAMETERS
B3: Input cells that need to be entered by the user are marked with orange colour!!
B5: compound name | C5: benzo[a]pyrene
B8: 1) ppLFER descriptors of the chemical
B9: - the required physico-chemical parameters can be retrieved from the LSER database
B10: - enter the chemical's physico-chemical parameters requested from the LSER database here:
B12: E | C12: S | D12: A | E12: B | F12: V | G12: L
B13: 3.63 | C13: 1.98 | D13: 0 | E13: 0.44 | F13: 1.9536 | G13: 11.736
B15: System Parameters:
C16: s | D16: a | E16: b | F16: v | G16: l | H16: c
B17: muscle protein-water | C17: -0.59 | D17: 0.21 | E17: -3.17 | F17: 2.13 | G17: 0.33 | H17: -0.94
B18: membrane lipid-water | C18: -0.93 | D18: -0.18 | E18: -3.75 | F18: 1.73 | G18: 0.49 | H18: 0.53
B19: storage lipid-water | C19: -1.62 | D19: -1.93 | E19: -4.15 | F19: 1.99 | G19: 0.58 | H19: 0.55
B20: bovine serum albumin-water | C20: -0.46 | D20: 0.2 | E20: -3.18 | F20: 1.84 | G20: 0.28 | H20: 0.48
B21: wet 1-octanol-water | C21: -1.41 | D21: -0.18 | E21: -3.45 | F21: 2.41 | G21: 0.43 | H21: 0.34
B22: Pahokee Peat-water (0.1 to 100 mmol/kgoc) | C22: -0.98 | D22: -0.42 | E22: -3.34 | F22: 1.2 | G22: 0.54 | H22: 0.02
B23: Suwannee River FA-water | C23: -0.69 | D23: 0.02 | E23: -2.43 | F23: 1.54 | G23: 0.34 | H23: -0.82
B25: For estimation of the unbound fraction in the exposure media, DOC-water and POC-water partition coefficients are needed:
B26: log KPOC [LH2O/kgPOC] | C26: =H22+C22*C$13+D22*D$13+E22*E$13+F22*F$13+G22*G$13 -> 5.29176
B27: log KDOC [LH2O/kgDOC] | C27: =H23+C23*C$13+D23*D$13+E23*E$13+F23*F$13+G23*G$13 -> 3.743384
B28: For estimation of the rate constants k1 and kE, a KOW is needed. The KOW calculated from physico-chemical parameters is:
B29: log KOW [LH2O/Loctanol] | C29: =H21+C21*C$13+D21*D$13+E21*E$13+F21*F$13+G21*G$13 -> 5.784856
B33: 2) Information from in vitro biotransformation assay
B35: Select the type of in vitro information (S9 or cell assay) you want to use and insert the required input data. In case biotransformation data is
B36: not available for all tissues, select 'N/A' for the cases where information is missing.
B37: The extrapolation procedure will be adapted automatically according your selection (in sheets 'k2 - hepatic biotransf', 'k2 - gill biotransf' and 'k2 - GIT biotransf').
B38: a) hepatic biotransformation | F38: b) gill biotransformation | I38: c) GIT biotransformation
B40: Please tick as appropriate: | F40: Please tick as appropriate: | I40: Please tick as appropriate:
B47: - liver S9-Assay | F47: - gill S9-Assay | I47: - GIT S9-Assay
B48: kassay [1/h] | C48: 20.98 | F48: kassay [1/h] | G48: 5 | I48: kassay [1/h] | J48: 8
B49: CS9 in assay [mgS9/mLassay] | C49: 1 | F49: CS9 in assay [mgS9/mLassay] | G49: 1 | I49: CS9 in assay [mgS9/mLassay] | J49: 1
B50: VL-S9assay [mLassay] | C50: 1 | F50: Vgillassay [mLassay] | G50: 1 | I50: Vgutassay [mLassay] | J50: 1
B52: - hepatocyte assay | F52: - cell assay | I52: - cell assay
B53: kassay [1/h] | C53: 5 | F53: kassay [1/h] | G53: 1 | I53: kassay [1/h] | J53: 10
B54: Cviable cells in assay [* 106 cells/mLassay] | C54: 2 | F54: Cviable cells in assay [* 106 cells/mLassay] | G54: 2 | I54: Cviable cells in assay [* 106 cells/mLassay] | J54: 2
B55: viability | C55: 0.85 | F55: viability | G55: 0.85 | I55: viability | J55: 0.85
B56: Vhepassay [mLassay] | C56: 1 | F56: Vgillassay [mLassay] | G56: 1 | I56: Vgutassay [mLassay] | J56: 1
B61: CALCULATED PARAMETERS - no changes by the user required
B63: Water contents in assay
B64: a) hepatic assay | F64: a) gill assay | I64: a) gut assay
B65: S9 volume present in assay VS9 [mL] | C65: =C50*(CliverSnine/1000)/'organism input data'!D79 -> 0.0007723392146 | D65: = (Vassay * CS9/1000) / ρS9 | F65: S9 volume present in assay VS9 [mL] | G65: =(G50*(G49/1000))/'organism input data'!D79 -> 0.0007723392146 | I65: S9 volume present in assay VS9 [mL] | J65: =(J50*(J49/1000))/'organism input data'!D79 -> 0.0007723392146
B66: S9-assay water content wassay | C66: =(C50-C65)/C50 -> 0.9992276608 | D66: = (Vassay - VS9)) / Vassay | F66: S9-assay water content wassay | G66: =(G50-G65)/G50 -> 0.9992276608 | I66: S9-assay water content wassay | J66: =(J50-J65)/J50 -> 0.9992276608
B67: total hepatocyte volume present in assay Vhep [mLhep] | C67: =(Chep*10^6*C56)/C55*1/6*PI()*dhep^3 -> 0.002898442006 | D67: = (Cviable cells * 106 * Vhepassay)/viability * Vsinglecell | F67: total cell volume present in assay Vgillcells [mLcells] | G67: =('compound input data'!G54*10^6*'compound input data'!G56)/'compound input data'!G55*(1/6*PI()*'organism input data'!D70^3) -> 0.004241705713 | I67: total cell volume present in assay Vgutcells [mLcells] | J67: =('compound input data'!J54*10^6*'compound input data'!J56)/'compound input data'!J55*(1/6*PI()*'organism input data'!D72^3) -> 0.006378932427
B68: hep-assay water content wassay | C68: =(C56-Vhep)/C56 -> 0.997101558 | D68: = (Vhepassay - Vhep ) / Vhepassay | F68: gill-assay water content wassay | G68: =('compound input data'!G56-G67)/'compound input data'!G56 -> 0.9957582943 | I68: gut assay water content wassay | J68: =('compound input data'!J56-J67)/'compound input data'!J56 -> 0.9936210676
B71: Partition information:
B72: - as interim result the following partition coefficients to different biological phases are calculated:
B73: log KWW [LH2O/LH2O] | C73: log KPW [LH2O/LProtein] | D73: log KMW [LH2O/Lmembrane lip] | E73: log KSW [LH2O/Lstorage lip] | F73: log KAW [LH2O/Lalbumin]
B75: 0 | C75: =H17+C17*C$13+D17*D$13+E17*E$13+F17*F$13+G17*G$13 -> 4.531048 | D75: =H18+C18*C$13+D18*D$13+E18*E$13+F18*F$13+G18*G$13 -> 6.168968 | E75: =H19+C19*C$13+D19*D$13+E19*E$13+F19*F$13+G19*G$13 -> 6.210944 | F75: =H20+C20*C$13+D20*D$13+E20*E$13+F20*F$13+G20*G$13 -> 5.050704
B77: Korganism/W [LH2O/LOrg] | C77: =worganism*10^logKww+'organism input data'!C32*10^logKpw+'organism input data'!D32*10^logKsw+'organism input data'!E32*10^logKmw -> 85885.71578 | D77: = worganism * KWW + proteincontentorganism * KPW + membrlipcontentorganism * KMW + storlipcontentorganism * KSW
B78: Kblood/W [LH2O/Lblood] | C78: =wblood*10^logKww+'organism input data'!C28*10^logKaw+'organism input data'!D28*10^logKpw+'organism input data'!E28*10^logKsw+'organism input data'!F28*10^logKmw -> 26199.07887 | D78: = wblood * KWW + albumincontentblood * KAW + proteincontentblood * KPW + storlipidpcontentblood * KSW + membrlipcontentblood * KMW
B79: Khep/W [LH2O/Lhep] | C79: =whep*10^logKww+'organism input data'!C36*10^logKpw+'organism input data'!D36*10^logKsw+'organism input data'!E36*10^logKmw -> 105722.7607 | D79: = whep * KWW + proteincontenthep * KPW + membrlipcontenthep * KMW + storlipcontenthep * KSW
B80: Kgillcell/W [LH2O/Lgillcell] | C80: =Khepw -> 105722.7607 | D80: taken from hepatocyte data
B81: Kgutcell/W [LH2O/Lgutcell] | C81: =Khepw -> 105722.7607 | D81: taken from hepatocyte data
B82: Krestbody/W [LH2O/Lrestbody] | C82: =(Vhepliver/mbody*Khepw+Vgut/mbody*Kgutcellw+Vgills/mbody*Kgillcellw-Korganismw)/(-(mbody-Vhepliver-Vgut-Vgills)/mbody) -> 84918.64578 | D82: = (Vliver/Vbody * Khep/W + Vgut/Vbody * Kgutcell/W + Vgills/Vbody * Kgillcell/W - Korganism/W) / (-Vrestbody/Vbody))
B83: fu,blood | C83: =wblood/Kbloodw -> 3.394546826e-05 | D83: = wblood / Kblood/H2O
B84: fu,liverS9-assay | C84: =1/(1+'compound input data'!C92*C65/(C50-C65)) -> 0.003121085739 | D84: = 1/(1+ KS9/W* VS9 / (VliverS9assay-VS9) )
B85: fu,hep-assay | C85: =1/(1+Khepw*Vhep/(Vhepassay-Vhep)) -> 0.003243361978 | D85: = 1/(1+ Khep/W * Vhep / (Vhepassay- Vhep) )
B86: fu,gillS9-assay | C86: =1/(1+'compound input data'!C92*G65/(G50-G65)) -> 0.003121085739 | D86: = 1/(1+ KS9/W* VS9 / (VgillS9assay-VS9) )
B87: fu,gillcell-assay | C87: =1/(1+Kgillcellw*G67/(G56-G67)) -> 0.002215550403 | D87: = 1/(1+ Kgillcell/W * Vgillcells / (Vgillassay- Vgillcells )
B88: fu,gutS9-assay | C88: =1/(1+'compound input data'!C92*J65/(J50-J65)) -> 0.003121085739 | D88: = 1/(1+ KS9/W* VS9 / (VgutS9assay-VS9) )
B89: fu,gutcell-assay | C89: =1/(1+Kgutcellw*J67/(J56-J67)) -> 0.00147117691 | D89: = 1/(1+ Kgutcell/W * Vgutcells / (Vgutassay- Vgutcells )
B92: KS9/H2O [LH2O/LS9]= | C92: ='organism input data'!B40*10^logKpw+'organism input data'!C40*10^logKmw -> 413231.1694 | D92: The required KS9/W is calculated as KS9/W = proteincontentS9 * KPW + lipidcontentS9 * KMW
B100: Information for comparison of the predicted BCF with a measured in vivo BCF
B102: freely dissolved chemical concentration in fish exposure media Cw,free [g/mL] | D102: 1 | E102: Note: The exact concentration value is not relevant for the resulting BCF (or BAF), because BCF and BAF reflect concentration ratios. Per default, we entered 1 g/mL because with this, interpretation of the steady-state concentrations in the supporting graphs (see BCF sheet) is straight forward.
B104: Per definition, the BCF is given by the chemical concentration in fish and the freely dissolved chemical concentration
B105: in surrounding water. When dissolved organic carbon (DOC) or particulate organic carbon (POC) are present in
B106: water during a BCF study, binding of the chemical to DOC and POC occurs. Accordingly, the freely dissolved chemical
B107: concentration needs to be measured explicitly to allow a correct BCF calculcation.
B108: For practical reasons, however, in vivo BCFs are often calculated on basis of total water concentration instead of the
B109: freely dissolved water concentration. To enable comparison of the here calculated modeling results with such a "BCF
B110: on total concentration basis", chemical binding to DOC and POC need to be accounted for in the model. For this purpose,
B111: information on the DOC and POC concentrations are required.
B112: Default values for DOC and POC concentrations derived from the maximum acceptable value given in the OECD 305 test guideline are
B113: provided below, the user may adjust them if desired. In version 1.0 and 1.1 of B-compass fish, higher values were implemented as
B114: defaults (form Nichols et al. 2013). With the new defaults, the predicted BCFs change partucilarly for highly hydrophobic chemicals.
B116: dissolved organic carbon concentration CDOC [kg/L] | D116: 1.6e-06 | E116: derived from the maximum acceptable value for total organic carbon indicated in OECD
B117: particulate organic carbon concentration CPOC [kg/L] | D117: 4e-07 | E117: TG 305 (TOC=2 mg/L) assuming that TOC consists of 80% DOC and 20 % DOC
B119: fraction unbound in exposure media fu,exposure media | D119: =1/(1+D116*10^'compound input data'!C27+D117*10^'compound input data'!C26) -> 0.9198177125 | E119: = 1/(1 + CDOC * KDOC/W + CPOC * KPOC/W)
B120: total chemical concentration in fish exposure media Cw [g/mL] | D120: =Cwfree/D119 -> 1.087171932 | E120: = Cw,free / fu, exposure media

Sheet organism input data
B1: INPUT PARAMETERS
B3: Input cells that need to be entered by the user are marked with orange colour!!
B5: bodyweight mbody [gfish] | C5: 10
B6: temperature [°C] | C6: 15 | D6: Note: Currently only kE and the cardiac output are temperature-adjusted!
B7: lipid content of fish (value between 0 - 1!) | C7: 0.05
B9: Additionally, physiological information is required. Typical default values for all required parameters are provided (see below)
B10: so that no further information needs to be entered by the user. If desired, however, the user can of course modify the
B11: parameter values.
B13: For the one-compartment model, only information on the composition (lipid, protein and water contents) and scaling factors
B14: (e.g. S9 content of the liver) are needed.
B15: The multi-compartment model additionally requires information on blood flow rates (cardiac output, organ flow rates) and
B16: organ volumes.
B20: Below is a list of the used default values for the required physiological parameters (for rainbow trout) and their corresponding
B21: references.
B23: Required Physiological Parameters
B25: 1) Compositions
B26: composition fish blood (volume fractions, values between 0 - 1!) - from Bertelsen et al. 1998 and Manera & Britti 2006
B27: water wblood | C27: albumin | D27: non-albumin protein | E27: storage lipid | F27: membrane lipid
B28: =0.839*1.06/1 -> 0.88934 | C28: =0.0138*0.7/1.4 -> 0.0069 | D28: =1-(wblood+C28+E28+F28) -> 0.08939870968 | E28: =0.007*1.06/0.93 -> 0.007978494624 | F28: =(0.014-E28)*1.06/1 -> 0.006382795699
B30: composition rainbow trout (volume fractions, values between 0 - 1!)
B31: water worganism | C31: protein | D31: storage lipid (calculated from above) | E31: membrane lipid (calculated from above)
B32: =1-C32-C7 -> 0.792 | C32: 0.158 | D32: =lipidorganism*0.9 -> 0.045 | E32: =lipidorganism*0.1 -> 0.005
B34: composition hepatocyte (volume fractions, values between 0 - 1!) - from Endo & Brown & Goss 2013
B35: water whep | C35: protein | D35: storage lipid | E35: membrane lipid
B36: 0.73 | C36: =1-whep-D36-E36 -> 0.205 | D36: 0.019 | E36: 0.046
B38: composition S9 fraction (volume fractions, values between 0 - 1!) - from Escher et al. 2011
B39: protein | C39: lipid
B40: =(2/1.4)/(2/1.4+0.51/1) -> 0.7369196758 | C40: =(0.51/1)/(2/1.4+0.51/1) -> 0.2630803242
B42: composition gill cells (volume fractions, values between 0 - 1!)
B43: assumed to be equal to hepatocytes
B46: composition intestinal cells (volume fractions, values between 0 - 1!)
B47: assumed to be equal to hepatocytes
B51: 2) Scaling factors
B52: liver S9 protein content LS9 [mg/gliver] | D52: 163 | E52: from Nichols et al. 2013
B53: liver hepatocyte content LHEP [106 cells/gliver] | D53: 510 | E53: from Nichols et al. 2013
B54: fractional liver weight LFBW [gliver/gfish] | D54: 0.015 | E54: from Schultz et al. 1999
B56: gill S9 content GS9 [mg/ggills] | D56: 163 | E56: assumed!
B57: gill cell content Gcells [106 cells/ggills] | D57: 556 | E57: from Stadnicka et al. 2018
B58: fractional gill weight GFBW [ggills/gfish] | D58: 0.0247 | E58: from Nichols et al. 1990
B60: cell content in gut, Gutcells [mg/gGIT] | D60: 229 | E60: from Saunders et al. 2020
B61: S9 content in gut, Gutcells [106 cells/gGIT] | D61: 366 | E61: from Stadnicka et al. 2018
B62: fractional intestine weight GutFBW [ggut/gfish] | D62: 0.0124 | E62: from Barron et al. 1987
B65: 3) Blood flow and volume information
B66: total liver blood flow as fraction of cardiac output QHFRAC [unitless] | D66: 0.259 | E66: from Nichols et al. 1990
B67: arterial liver blood flow as fraction of cardiac output QHFRAC,arterial [unitless] | D67: =0.06/2.07 -> 0.02898550725 | E67: from Nichols et al. 1991
B68: hepatocyte diameter dhep [cm] | D68: 0.00133 | E68: from Arnold et al. 1995
B70: gill cell diameter dgill [cm] | D70: 0.00151 | E70: from Stadnicka et al. 2018
B72: gut cell diameter dgut [cm] | D72: 0.00173 | E72: from Stadnicka et al. 2018
B73: intestinal blood flow as fraction of cardiac output QGFRAC [unitless] | D73: =D66-D67 -> 0.2300144928 | E73: = QHFRAC - QHFRAC,arterial
B77: Calculated Physiological Parameters - no changes by the user required
B79: S9 density ρS9 [g/mL] | D79: =(2.51/(2/1.4+0.51/1)) -> 1.29476787
B81: liver weight mliver [gliver] | D81: =D54*mbody -> 0.15 | E81: = LFBW * mbody
B82: gill weight mgills [ggills] | D82: =D58*mbody -> 0.247 | E82: = GFBW * mbody
B83: intestine weight mgut [ggut] | D83: =0.0124*mbody -> 0.124 | E83: = GutFBW * mbody
B84: weight rest of body mrestbody [g] | D84: =mbody-Vgut-Vgills-Vhepliver -> 9.53515446
B86: hepatocyte volume in the liver Vhepliver [mL] | D86: =Lhep*10^6*mliver*1/6*PI()*dhep^3 -> 0.09423559573 | E86: = Lhep * 10^6 * mliver * Vsinglecell (Vsinglecell = 1/6 * π * dhep3 because spherical shape assumed)
B87: gill cell volume Vgills [mL] | D87: =Gcells*10^6*mgills*(1/6*PI()*D70^3) -> 0.2475718198 | E87: = Gcells * 10^6 * mgills * Vsinglecell (Vsinglecell = 1/6 * π * dgill3 because spherical shape assumed)
B88: gut cell volume Vgut [mL] | D88: =gutcells*10^6*mgut*(1/6*PI()*D72^3) -> 0.1230381244 | E88: = Gutcells * 10^6 * mgut * Vsinglecell (Vsinglecell = 1/6 * π * dgut3 because spherical shape assumed)
B90: temperature adjusted cardiac output QC [L/d/kgfish] | D90: =((((0.23*T)-0.78)*(mbody/500)^-0.1)*24) -> 94.75878936 | E90: = (((0.23 * T) - 0.78) * (mbody/500)-0.1) * 24 from Erickson & McKim 1990
B92: arterial liver blood flow per bodyweight Qliver,bodyweight [L/d/kgfish] | D92: =D90*D67 -> 2.746631576 | E92: = QC * QHFRAC
B93: arterial liver blood flow Qliver [mL/h] | D93: =(D92*1000/1000)/24*mbody -> 1.144429823 | E93: = Qliver,bodyweight / 24 * mbody
B94: gill blood flow rate per bodyweight Qgills, bodyweight [mLblood/h/gfish] | D94: ='organism input data'!D90*1000/1000/24 -> 3.94828289 | E94: assumed as 100% of cardiac output
B95: gill blood flow rate Qgills [mLblood/h] | D95: =D94*mbody -> 39.4828289 | E95: = Qgills,bodyweight * mbody
B96: gut blood flow rate [mLblood/h/gfish] Qgut, bodyweight | D96: =D90*D73 -> 21.79589487 | E96: = QC * QGFRAC
B97: gut blood flow rate Qgut [mLblood/h] | D97: =(D96*1000/1000)/24*mbody -> 9.081622861 | E97: = Qgut,bodyweight * mbody
B98: total liver blood flow Qliver-total [mL/h] | D98: =(D90*D66*1000/1000)/24*mbody -> 10.22605268 | E98: = QC * QHFRAC / 24 * mbody
B99: blood flow rate to rest body Qbody [mL/h] | D99: =('organism input data'!D90*1000/1000/24*mbody)-Qliver-Qgut -> 29.25677621 | E99: = QC / 24 * mbody - Qgut - Qliver

Sheet BCF
M1: in g/d | N1: % of uptake
B2: ="Calculation of the BCF for "&'compound input data'!C5 -> Calculation of the BCF for benzo[a]pyrene | K2: chemical mass taken up | M2: =kone*Cwfree*mbody -> 2488.87648 | N2: =M2/M2 -> 1
R4: in g/d | S4: % of uptake
K5: one-compartment model | P5: multi-compartment model
B6: 1) Partitioning based BCF (without biotransformation): | K6: mass eliminated via ventilation | M6: =kV*D47*Cwfree*mbody -> 2.088829791 | N6: =M6/$M$2 -> 0.0008392661541 | P6: mass eliminated via ventilation | R6: =kgillsventilation*B31*Vgills -> 2.285242812 | S6: =R6/$M$2 -> 0.0009181824932
B7: partitioning based BCF (corresponds to the organism-water partition coefficient) [Lwater/Lfish] | D7: =Korganismw -> 85885.71578 | K7: mass transformed in gills | M7: =D47*kBGILLS*Cwfree*mbody -> 1298.148158 | N7: =M7/$M$2 -> 0.5215799853 | P7: mass transformed in gills | R7: =kgillsbiotransf*B31*Vgills -> 1420.21325 | S7: =R7/$M$2 -> 0.57062424
K8: mass transformed in liver | M8: =kBLIVER*D47*Cwfree*mbody -> 1184.285381 | N8: =M8/$M$2 -> 0.4758313202 | P8: mass transformed in liver | R8: =kliverbiotransf*C31*Vhepliver -> 1061.618782 | S8: =R8/$M$2 -> 0.4265453874
K9: mass transformed in GIT | M9: =D47*kBGIT*Cwfree*mbody -> 0 | N9: =M9/$M$2 -> 0 | P9: mass transformed in GIT | R9: =D31*kGITbiotransf*Vgut -> 0 | S9: =R9/$M$2 -> 0
B10: 2) Kinetic BCFs calculated on based on the total chemical concentration in | K10: mass eliminated via feces | M10: =kE*D47*Cwfree*mbody -> 4.354111041 | N10: =M10/$M$2 -> 0.001749428337 | P10: mass eliminated via feces | R10: =kGITfeces*D31*Vgut -> 4.759204964 | S10: =R10/$M$2 -> 0.001912190099
B11: fish cultivation media: | P11: blood flows: | Q11: gill-to-body | R11: =1-R12-R13 -> 0.741
B12: (i.e. consistent with BCFs determined according OECD TG 305) | Q12: gills-to-GIT | R12: ='organism input data'!D73 -> 0.2300144928
B13: a) Classical one-compartment model (no mass transfer limitations): | Q13: gills-to-liver | R13: ='organism input data'!D67 -> 0.02898550725
B14: kinetic BCFone-compartment [Lwater/kgfish] | D14: =kone*'compound input data'!D119/(kV+kBLIVER+kE+kBGILLS+kBGIT) -> 66.30135696 | E14: = (k1 * fu,exposure media)/(kV+kB,LIVER+kE+kB,GILLS+kB,GIT) | K14: steady state Cfree in fish | M14: =(D47*Cwfree)/Korganismw -> 0.0008392661541
B16: b) Multi-compartment model:
B17: The multi-compartment model distinguishes the four compartments gills, liver, GIT and
B18: rest of the body. By this, the model can represent the potential first pass effect in the gills
B19: and the direct blood flow from GIT to liver.
B20: For every compartment, a mass balance is set up containing all uptake
B21: and elimination processes applying to the respective compartment. This linear system of
B22: equations is then solved via the Gaussian elimination method.
B23: The linear system of equations is written into the following 4x4-matrix: | F23: Cgills | G23: Cliver | H23: CGIT | I23: Crestbody
E24: I | F24: =kbodyin*Vgills -> 174.0024 | G24: 0 | H24: 0 | I24: =-kbodyout*mrestbody -> -216.6310347 | J24: 0
E25: II | F25: =kliverin*Vgills -> 6.806407324 | G25: =-((kliverbiotransf+kliverout)*Vhepliver) -> -74.16579106 | H25: =kGITout*Vgut -> 54.01224532 | I25: 0 | J25: 0
E26: III | F26: =kGITin*Vgills -> 54.01224532 | G26: 0 | H26: =-(kGITbiotransf+kGITfeces+kGITout)*Vgut -> -54.06131704 | I26: 0 | J26: 0
E27: IV | F27: =-(kgillsventilation+kgillsbiotransf+kbodyin+kliverin+kGITin)*Vgills -> -249.4749894 | G27: =kliverout*Vhepliver -> 60.81865265 | H27: 0 | I27: =kbodyout*mrestbody -> 216.6310347 | J27: =-kone*mbody*Cwfree -> -2488.87648
B29: Solution of the linear systems of equations yield the steady state - concentrations in the four compartments:
B30: Cgills | C30: Cliver | D30: CGIT | E30: Crestbody
B31: =TRANSPOSE(MMULT(MINVERSE(F24:I27),J24:J27)) -> 97.072788 | C31: 79.53905548 | D31: 96.98467455 | E31: 77.97081391
B33: Combination of the steady state-concentrations in the compartments yields the BCF:
B34: kinetic BCFmulti-compartment [Lwater/kgfish] | D34: =(D31*Vgut+C31*Vhepliver+B31*Vgills+E31*mrestbody)/mbody /Cwtotal -> 72.38270599 | E34: =(Cgills*Vgills + Cliver*Vliver + CGIT*VGIT + Crestbody*Vrestbody) / mbody / Cw
B36: By combining the steady state concentrations with the respective tissue-water partition coefficients, one can
B37: calculate the corresponding aqueous concentrations to see whether there is equilibrium between the tissues.
B38: C in gill-water [g/mL] | C38: C in liver-water [g/mL] | D38: C in GIT-water [g/mL] | E38: C in restbody-water [g/mL]
B39: =B31/Kgillcellw -> 0.0009181824932 | C39: =C31/Khepw -> 0.000752336157 | D39: =D31/Kgutcellw -> 0.0009173490545 | E39: =E31/Krestorganismw -> 0.0009181824932
B42: Other results:
B44: 3) Kinetic BCFs calculated based on freely dissolved chemical concentration in
B45: fish cultivation media (BCFfd):
B46: a) Classical one-compartment model (no flow limitations):
B47: kinetic BCFone-compartment,fd [Lwater/kgfish] | D47: =kone/(kV+kBLIVER+kE+kBGILLS+kBGIT) -> 72.08097438 | E47: = k1 /(kV+kB,LIVER+kE+kB,GILLS+kB,GIT)
B49: b) Multi-compartment model:
B50: kinetic BCFmulti-compartment,fd [Lwater/kgfish] | D50: =(D31*Vgut+C31*Vhepliver+B31*Vgills+E31*mrestbody)/mbody / Cwfree -> 78.69244635 | E50: =(Cgills*Vgills + Cliver*Vliver + CGIT*VGIT + Crestbody*Vrestbody) / mbody / Cw,free
B53: 4) whole-body elimination constant as an alternative endpoint:
B54: whole-body elimination rate constant [1/d] | D54: =kV+kBLIVER+kE+kBGILLS+kBGIT -> 3.452889617 | E54: = kV+kB,LIVER+kE+kB,GILLS+kB,GIT
B182: a) with hepatic biotransformation only:
B183: Classical one-compartment model (no mass transfer limitations):
B184: kinetic BCF [Lwater/kgfish] | D184: =kone*'compound input data'!D119/(kV+kBLIVER+kE) -> 138.5839951 | E184: =(k1 * fu,exposure media)/(kV+kB,LIVER+kE)
B188: 2) with hepatic & gill biotransformation (as whole-body elimination processes):
B189: For this purpose, the extrapolated whole-body gill biotransformation rate constant kB,gills is used.
B190: kinetic BCF [Lwater/kgfish] | F190: =kone*'compound input data'!D119/(kV+kBLIVER+kE+kBGILLS) -> 66.30135696 | G190: = (k1 * fu,exposure media)/(kV+kB,LIVER+kE+kB,GILLS)
B192: 3) with hepatic and gill biotransformation (representing first pass-effect in gills):
B193: For this purpose, a different equation for BCF calculation and the gill-based gill biotransformation
B194: rate constant kgills,biotransf has to be used.
B195: kinetic BCFfirst-pass [Lwater/kgfish] | F195: =(kone*kbodyout*'compound input data'!D119)/((kbodyin+kBLIVER+kE)*(kgillsventilation+kgillsbiotransf+kbodyout)-kbodyout*kbodyin) -> 0.1246186747 | G195: =(kgills,out * k1 * fu,exposure media) / ((kgills,in+kB,LIVER+kE) * (kgills,ventilation+kgills,biotrans+kgills,out) - kgills,in kgills,out)
B197: 4) with hepatic & gill & GIT biotransformation (as whole-body elimination processes):
B198: kinetic BCF [Lwater/kgfish] | F198: =(kone*kbodyout*'compound input data'!D119)/((kbodyin+kBLIVER+kBGIT+kE)*(kgillsventilation+kgillsbiotransf+kbodyout)-kbodyout*kbodyin) -> 0.1246186747 | G198: =(kgills,out * k1 * fu,exposure media) / ((kgills,in+kB,LIVER+kBGIT+kE) * (kgills,ventilation+kgills,biotrans+kgills,out) - kgills,in kgills,out)
B200: steady state-concentrations:
B201: chemical concentration in fish exposure medium | D201: 1
B202: state state concentration in rest of body | D202: =F198*D201 -> 0.1246186747 | I202: =Khepw -> 105722.7607
B203: steady state-concentration in gills | D203: =(kone*D201*mbody+kbodyin*(mbody-mgills)*F198)/(mgills*(kgillsventilation+kgillsbiotransf+kbodyout)) -> 165.2408041 | I203: =(Vhepliver/mbody*Khepw-Korganismw)/(-(mbody-Vhepliver)/mbody) -> 85697.00185
B204: fugacity in rest of body | D204: =D202/Korganismw -> 1.450982548e-06 | H204: restbody vertlgskoeff | I204: =(kone*mbody/(mbody-Vhepliver))/I202 -> 0.002376549442
B205: fugacity in gills | D205: =D203/Khepw -> 0.001562963387 | I205: =Qliver*Kbloodw/Krestorganismw*1/mrestbody*24 -> 0.8887009376
H206: kV rest body | I206: =Qliver*Kbloodw/I202*1/(mbody-Vhepliver)*24 -> 0.6871158092
H207: body-to-liver rate constant kliver,in [1/d]
I210: "falsches" 2-Kompartment | J210: "korrektes" 2-Kompartment-Modell: | K210: d.h. Abzug von Sorptionskapazität und Volumen der Leber vom Gesamtkörper,
I211: =kone/(-(kliverout)*(kliverin)/(kliverout+('k2 - hepatic biotransf'!C24)*1/Vhepliver*24)+(kliverin)+kV+kE) -> 50.21323448 | J211: =(L212*(mbody-Vhepliver)+L213*Vhepliver)/mbody/D201 -> 1878.700634 | K211: anschließendes Aufsummieren der Massen in Leber und Restkörper:
H212: (Quasi-)1-Kompartment | I212: =k1 / (-kliver,out * kliver,in / (kliver,out+kliver,biotransf) + kliver,in + kV + kE) | J212: aus den steady-state konz in leber und restkörper berechnet | K212: steadystate konz in restkörper | L212: =(D201*kone*mbody/(mbody-Vhepliver))/(-kliverout*BCF!I206/(kliverout+'k2 - hepatic biotransf'!C24/Vhepliver*24)+BCF!I206+kV+kE) -> 1894.918737
H213: =kone/(kV+kBLIVER+kE) -> 150.6646297 | K213: steadystate konz in leber | L213: =BCF!I206/(kliverout+'k2 - hepatic biotransf'!C24/Vhepliver*24)*L212*(mbody-Vhepliver)/Vhepliver -> 173.9021264
H214: =(k1)/(kV+kB,LIVER+kE) | I214: =kone/(-(kliverout)*(kliverin)/(kliverout+('k2 - hepatic biotransf'!C24)*1/Vhepliver*24)+(kliverin)+kV+0) -> 50.27450358 | J214: =(L214*(mbody-Vhepliver)+L215*Vhepliver)/mbody/D201 -> 1968.37362 | L214: =(D201*kone*mbody/(mbody-Vhepliver))/(-kliverout*BCF!I206/(kliverout+'k2 - hepatic biotransf'!C24/Vhepliver*24)+BCF!I206+kV+0) -> 1985.365835
I215: =k1 / (-kliver,out * kliver,in / (kliver,out+kliver,biotransf) + kliver,in + kV) | L215: =BCF!I206/(kliverout+'k2 - hepatic biotransf'!C24/Vhepliver*24)*L214*(mbody-Vhepliver)/Vhepliver -> 182.2027159
H216: =kone/(kV+kBLIVER) -> 151.2175839
H217: =(k1)/(kV+kB,LIVER)
B221: für Stadnicka:
B222: "no biotransformation BCF" [Lwater/kgfish] | C222: =kone*'compound input data'!D119/(kV+kE) -> 25611.88939 | D222: =(k1 * fu,exposure media)/(kV+kE)
B225: a) zum Vergleich Ergebnisse der Modellvereinfachung - nur Ventilation und Kiemenbiotransformation
B230: Kiemenbiotransformation auf Kiemenkonzentration ("first-pass"):
B231: kinetic BCFfirst-pass [Lwater/kgfish] | C231: =(kone*kbodyout)/(kbodyin*(kgillsventilation+kgillsbiotransf+kbodyout)-kbodyout*kbodyin) -> 0.1359218111 | D231: =(kgills,out * k1 ) /(kgills,in * (kgills,ventilation+kgills,biotrans+kgills,out) - kgills,in kgills,out)
B234: b) zum Vergleich nur Ventilation, Kiemenbiotransformation und ein weiterer Eliminationspfad:
B236: Nur Ventilation, Kiemenbiotransformation und feces: | F236: Nur Ventilation, Kiemenbiotransformation und hepatische Biotransformation:
B238: kinetic BCF [Lwater/kgfish] | C238: =kone/(kV+kE) -> 27844.52728 | D238: = k1/(kV+kE) | F238: kinetic BCF [Lwater/kgfish] | G238: =kone/(kV+kBLIVER) -> 151.2175839 | H238: = k1/(kV+kB)
B240: kinetic BCF [Lwater/kgfish] | C240: =kone/(kV+kE+kBGILLS) -> 137.5148443 | D240: = k1/(kV+kE+kB,GILLS) | F240: kinetic BCF [Lwater/kgfish] | G240: =kone/(kV+kBLIVER+kBGILLS) -> 72.20729587 | H240: = k1/(kV+kB+kgills,body)
B242: kinetic BCFfirst-pass [Lwater/kgfish] | C242: =(kone*kbodyout)/((kbodyin+kE)*(kgillsventilation+kgillsbiotransf+kbodyout)-kbodyout*kbodyin) -> 0.1359201945 | D242: =(kgills,out * k1 ) /((kgills,in +kE) * (kgills,ventilation+kgills,biotrans+kgills,out) - kgills,in kgills,out) | F242: kinetic BCFfirst-pass [Lwater/kgfish] | G242: =(kone*kbodyout)/((kbodyin+kBLIVER)*(kgillsventilation+kgillsbiotransf+kbodyout)-kbodyout*kbodyin) -> 0.1354835316 | H242: =(kgills,out * k1 ) /((kgills,in + kB,LIVER) * (kgills,ventilation+kgills,biotrans+kgills,out) - kgills,in kgills,out)
B246: c) zum Vergleich nur Ventilation und ein weiterer Ganzkörper-Eliminationspfad (dh ohne Kiemenbiotransformation):
B248: Nur Ventilation und feces:
B250: kinetic BCF [Lwater/kgfish] | C250: =kone/(kV+kE) -> 27844.52728 | D250: = k1/(kV+kE)
B252: kinetic BCFfirst-pass [Lwater/kgfish] | C252: =(kone*kbodyout)/((kbodyin+kE)*(kgillsventilation+kbodyout)-kbodyout*kbodyin) -> 84.43334663 | D252: =(kin * k1) /((kout+kE) * (kV,gills+kin) - kin kout)
B254: -> liefert nicht das gleiche Ergebnis, wie BCF ohne first-pass!! Das müsste doch aber so sein?
B255: -> Problem scheint der Kiemen-zu-Körperblutfluss zu sein: Wenn dieser zu langsam ist, limitiert
B256: er die nachfolgenden kinetischen Schritte?
B258: bisher verwendeter Qgills [mL/h] | C258: =Qgills -> 39.4828289
B259: nun folgenden Qgills verwenden: | C259: 100000
B260: ergibt folgendes kin und kout:
B261: gill-to-body rate constant kin [1/d] | C261: =C259*Kbloodw/Kgillcellw*1/Vgills*24 -> 2402301.762 | D261: = Qgills * Kblood/w / Kgills/w * 1/Vgills * 24
B262: body-to-gills rate constant kout [1/d] | C262: =C259*Kbloodw/Korganismw*1/mbody*24 -> 73210.99755 | D262: = Qgills * Kblood/w / Korganism/w * 1/mbody * 24
B263: damit kinetic BCFfirst-pass berechnen:
B264: kinetic BCFfirst-pass [Lwater/kgfish] | C264: =(kone*C261)/((C262+kE)*(kgillsventilation+C261)-C261*C262) -> 27844.52655 | D264: =(kin * k1) /((kout+kE) * (kV,gills+kin) - kin kout)
B265: -> nun stimmt das Ergebnis mit obigem Ergebnis (BCF ohne first-pass nur Ventilation & feces, Zelle C59) überein!

Sheet k1
B2: ="Calculation of the gill uptake rate constant for "&'compound input data'!C5 -> Calculation of the gill uptake rate constant for benzo[a]pyrene
B6: Comparison of two variants for calculation of the gill uptake rate constant
B8: 1) Sijm-Method
B9: Gill uptake rate constant k1 [L/kg/d] | E9: =520*mbody^-0.32 -> 248.887648 | G9: = 520*mbody-0.32 from Sijm et al. 1995
B11: 2) Arnot&Gobas-Method
B13: Gill uptake rate constant k1 [L/kg/d] | E13: =1/((0.01+1/(10^logKow))*(mbody/1000)^0.4) -> 630.8538129 | G13: = 1/((0.01 + 1/KOW)*(mbody/1000)0.4) from Arnot & Gobas 2003
B16: Insert the k1 value you want to use for final BCF calculation here:
B17: (either one from above or one from your own sources)
B19: Gill uptake rate constant k1 [L/kg/d] | E19: =E9 -> 248.887648

Sheet k2 - gills
B2: ="Calculation of the ventilation elimination rate constant for "&'compound input data'!C5 -> Calculation of the ventilation elimination rate constant for benzo[a]pyrene
B6: whole-body ventilation elimination rate constant kV [1/d] | E6: =kone/Korganismw -> 0.002897893389 | F6: = k1 / Korganism/W from Arnot & Gobas 2003
B9: The above calculated ventilation rate constant kV refers to whole-body concentration and is used in the
B10: one-compartment model.
B11: For the multi-compartment model (that represents the gills as an extra compartment), this kV cannot be
B12: used. Instead, a ventilation rate constant that refers to chemical concentration in the gills (and not to
B13: whole-body concentration) is required.
B14: This required ventilation rate constant kgills,ventilation is calcuated from the above kV via adjusting the
B15: normalization as follows:
B16: "gill-based" ventilation rate constant kgills,ventilation [1/d] | E16: =kV*Korganismw/Kgillcellw*mbody/Vgills -> 0.09508973552 | F16: = kV * Korganism/w / Kgills/w * Vbody / Vgills

Sheet k2 - hepatic biotransf
B2: ="Calculation of the hepatic biotransformation rate constant for "&'compound input data'!C5 -> Calculation of the hepatic biotransformation rate constant for benzo[a]pyrene
B6: in vitro-in vivo extrapolation of liver S9 assay data
B9: assay clearance CLin vitro [mLassay/h/mgS9] | C9: =kliverS9assay/CliverSnine -> 20.98 | D9: = kassay / CS9
B11: hepatocyte clearance CLhep [mLhep/h] | C11: =CLS9assay*1/fuliverS9assay*LSnine*mliver*wliverS9assay/Khepw -> 1.553368881 | D11: = 1/fu,liverS9assay * CLin vitro * LS9 * mliver * wassay/Khepw
B13: blood clearance w/o flow limitation CLblood w/o flowlim,liver [mLblood/h] | C13: =fublood/fuliverS9assay*CLS9assay*LSnine*mliver*wliverS9assay/wblood -> 6.268405363 | D13: = fu,blood/fu,liverS9assay * CLin vitro * LS9 * mliver* wassay/wblood
B14: blood clearance incl. flow lim. CLblood,liver [mLblood/h] | C14: =(Qlivertotal*fublood/fuliverS9assay*CLS9assay*LSnine*mliver*wliverS9assay/wblood)/(Qlivertotal+fublood/fuliverS9assay*CLS9assay*LSnine*mliver*wliverS9assay/wblood) -> 3.886217013 | D14: = (Qliver * fu,blood/fu,liverS9assay * CLin vitro * LS9 * mliver* wassay/wblood) / (Qliver + fu,blood/fu,liverS9assay * CLin vitro * LS9 * mliver* wassay/wblood)
B16: Whole-body biotransformation rate constant kB,LIVER [1/d] (w/o flow lim.) | C16: =(C13*Kbloodw/Korganismw)/mbody*24 -> 4.589162097 | D16: = (CLblood,liver * Kblood/water / Korganism/water) / Vorganism * 24
B19: in vitro-in vivo extrapolation of hepatocyte assay data
B22: assay clearance CLin vitro [mLassay/h/106hep] | C22: =khepassay/Chep -> 2.5 | D22: = kassay / Chep
B24: hepatocyte clearance CLhep [mLhep/h] | C24: =CLhepassay*1/fuhepassay*(Lhep*mliver)*whepassay/Khepw -> 0.5561307671 | D24: = 1/fu,hep-assay * CLin vitro * Lhep * mliver * wassay/Khepw
B26: blood clearance w/o flow limitation CLblood w/o flowlim,liver [mLblood/h] | C26: =fublood/fuhepassay*CLhepassay*Lhep*mliver*whepassay/wblood -> 2.244188824 | D26: = fu,blood/fu,hep-assay * CLin vitro * LHep * mliver* wassay/wblood
B27: blood clearance incl. flow lim. CLblood,liver [mLblood/h] | C27: =(Qlivertotal*fublood/fuhepassay*CLhepassay*Lhep*mliver*whepassay/wblood)/(Qlivertotal+fublood/fuhepassay*CLhepassay*Lhep*mliver*whepassay/wblood) -> 1.840316656 | D27: = (Qliver * fu,blood/fu,hep-assay * CLin vitro * LHep * mliver* wassay/wblood) / (Qliver + fu,blood/fu,hep-assay * CLin vitro * LHep * mliver* wassay/wblood)
B29: Whole-body biotransformation rate constant kB,LIVER (w/o flow lim.) [1/d] | C29: =(C26*Kbloodw/Korganismw)/mbody*24 -> 1.642993025 | D29: = (CLblood,liver * Kblood/water / Korganism/water) / Vorganism * 24
B32: The following value for kB,LIVER is used for final BCF calculation:
B34: whole-body hepatic biotransformation rate constant kB,LIVER (w/o flow lim.) [1/d] | C34: =C29 -> 1.642993025
B37: The above calculated hepatic biotransformation rate constant kB,LIVER refers to whole-body concentration and
B38: is used in the one-compartment model.
B39: For the multi-compartment model (that represents the liver as an extra compartment), this kB,LIVER cannot be
B40: used. Instead, a hepatic biotransformation rate constant that refers to chemical concentration in the liver (and
B41: not to whole-body concentration) is required.
B42: This required liver biotransformation rate constant kliver,biotransf is calcuated from the above kB,LIVER via adjusting
B43: the normalization as follows:
B44: liver biotransformation rate constant kliver,biotransf [1/d] | C44: =kBLIVER*Korganismw/Khepw*mbody/Vhepliver -> 141.6358469 | D44: = kB,LIVER * Korganismw / Khepw * Vbody / Vhepliver
B46: For consideration of the liver as an extra compartment, rate constants describing transport from
B47: liver to body and vice versa ("kliver,out" and "kliver,in") are required. When no limitations due to slow
B48: permeation kinetics are assumed, this transport should solely depend on the liver blood flow rate.
B49: The rate constants can be calculated from liver blood flow rate as follows:
B50: liver-to-body rate constant kliver,out [1/d] | C50: =Qlivertotal*Kbloodw/Khepw*1/Vhepliver*24 -> 645.3893794 | D50: = Qlivertotal * Kbloodw/Khepw *1/Vhepliver *24
B51: body-to-liver rate constant kliver,in [1/d] | C51: =Qliver*Kbloodw/Kgillcellw*1/Vgills*24 -> 27.4926578 | D51: = Qliver * Kbloodw/Kgillcellsw * 1/Vgills * 24

Sheet k2 - gill biotransf
B2: ="Calculation of the gill biotransformation rate constant for "&'compound input data'!C5 -> Calculation of the gill biotransformation rate constant for benzo[a]pyrene
B7: in vitro - in vivo extrapolation of gill S9 assay data:
B9: assay clearance CLin vitro [mLassay/h/106cells] | C9: ='compound input data'!G48/'compound input data'!G49 -> 5 | D9: = kassay / Ccells,assay
B11: gill cell clearance CLgills [mLgills/h] | C11: =1/fugillS9assay*C9*GSnine*mgills*wgillS9assay/Kgillcellw -> 0.6095997992 | D11: = 1/fu,gillS9-assay * CLin vitro * GS9 * mgills * wassay/Kgillcell/w
B13: blood clearance w/o flow limitation CLblood w/o flowlim,gills [mLblood/h] | C13: =fublood/fugillS9assay*C9*GSnine*mgills*wgillS9assay/wblood -> 2.459955711 | D13: = fu,blood/fu,gillS9-assay * CLin vitro * GS9 * mgills * wassay/wblood
B14: blood clearance incl. flow lim. CLblood,gills [mLblood/h] | C14: =(Qgills*fublood/fugillS9assay*C9*GSnine*mgills*wgillS9assay/wblood)/(Qgills+fublood/fugillS9assay*C9*GSnine*mgills*wgillS9assay/wblood) -> 2.315678641 | D14: = (Qgills * fu,blood/fu,gillS9-assay * CLin vitro * GS9 * mgills* wassay/wblood) / (Qgills + fu,blood/fu,gillS9-assay * CLin vitro * GS9 * mgills* wassay/wblood)
B16: whole-body gill biotransformation rate constant kB,GILLS (w/o flow lim.) [1/d] | C16: =(C13*Kbloodw/Korganismw)/mbody*24 -> 1.800958116 | D16: = (CLblood w/o flowlim,gills * Kblood/water / Korganism/water) / Vorganism * 24
B20: in vitro - in vivo extrapolation of gill cell assay data:
B22: assay clearance CLin vitro [mLassay/h/106cells] | C22: ='compound input data'!G53/'compound input data'!G54 -> 0.5 | D22: = kassay / Ccells,assay
B24: gill cell clearance CLgills [mLgills/h] | C24: =1/fugillcellassay*C22*Gcells*mgills*'compound input data'!G68/Kgillcellw -> 0.2919077007 | D24: = 1/fu,gillcell-assay * CLin vitro * Gcells * mgills * wassay/Kgillcell/w
B26: blood clearance w/o flow limitation CLblood w/o flowlim,gills [mLblood/h] | C26: =fublood/fugillcellassay*C22*Gcells*mgills*'compound input data'!G68/wblood -> 1.177953169 | D26: = fu,blood/fu,gillcell-assay * CLin vitro * Gcells * mgills * wassay/wblood
B27: blood clearance incl. flow lim. CLblood,gills [mLblood/h] | C27: =(Qgills*fublood/fugillcellassay*C22*Gcells*mgills*'compound input data'!G68/wblood)/(Qgills+fublood/fugillcellassay*C22*Gcells*mgills*'compound input data'!G68/wblood) -> 1.143827567 | D27: = (Qgills * fu,blood/fu,gillcell-assay * CLin vitro * Gcells * mgills* wassay/wblood) / (Qgills + fu,blood/fu,gillcell-assay * CLin vitro * Gcells * mgills* wassay/wblood)
B29: whole-body gill biotransformation rate constant kB,GILLS (w/o flow lim.) [1/d] | C29: =(C26*Kbloodw/Korganismw)/mbody*24 -> 0.862391266 | D29: = (CLblood w/o flowlim,gills * Kblood/water / Korganism/water) / Vorganism * 24
B32: The following value for kB,GILLS is used for final BCF calculation:
B34: whole-body gill biotransformation rate constant kB,GILLS (w/o flow lim.) [1/d] | C34: =C16 -> 1.800958116
B37: The above calculated gill biotransformation rate constant kB,GILLS refers to whole-body concentration and
B38: is used in the one-compartment model.
B39: For the multi-compartment model (that represents the gills as an extra compartment), this kB,GILLS cannot be
B40: used. Instead, a gill biotransformation rate constant that refers to chemical concentration in the gills (and
B41: not to whole-body concentration) is required.
B42: This required gill biotransformation rate constant kgills,biotransf is calcuated from the above kB,GILLS via adjusting
B43: the normalization as follows:
B44: gill biotransformation rate constant kgills,biotransf [1/d] | C44: =kBGILLS*Korganismw/Kgillcellw*mbody/Vgills -> 59.09555939 | D44: = kB,gills * Korganismw / Kgillcellw * Vbody / Vgills
B46: When the gills are considered as an extra compartment, rate constants describing transport from gills to rest
B47: body (i.e. body without gills, liver and GIT) and vice versa are required ("kbody,in" and "kbody,out"). When no limi-
B48: tations due to slow permeation kinetics are assumed, this transport should solely depend on the blood flow rate.
B49: The rate constants can then be calculated from blood flow as follows:
B50: body-to-gill rate constant kbody,out [1/d] | C50: ='organism input data'!D99*Kbloodw/Krestorganismw*1/mrestbody*24 -> 22.71919512 | D50: = Qbody * Kblood/w / Krestorganism/w * 1/mrestbody * 24
B51: gill-to-body rate constant kbody,in [1/d] | C51: ='organism input data'!D99*Kbloodw/Kgillcellw*1/Vgills*24 -> 702.8360504 | D51: = Qbody * Kblood/w / Kgillcells/w * 1/Vgills * 24
B71: body-to-gills rate constant kgills,in [1/d], corrected for sorption capacities & volumes | C71: =Qgills*Kbloodw/Krestorganismw*1/mrestbody*24 -> 30.66018235

Sheet k2 - GIT biotransf
B2: ="Calculation of the GIT biotransformation rate constant for "&'compound input data'!C5 -> Calculation of the GIT biotransformation rate constant for benzo[a]pyrene
B7: in vitro - in vivo extrapolation of gut S9 assay data:
B9: assay clearance CLin vitro [mLassay/h/106cells] | C9: ='compound input data'!J48/'compound input data'!J49 -> 8 | D9: = kassay / Ccells,assay
B11: gut cell clearance CLgut [mLgut/h] | C11: =1/fugutS9assay*C9*gutSnine*mgut*wgutS9assay/Kgutcellw -> 0.6879191634 | D11: = 1/fu,gutS9-assay * CLin vitro * gutS9 * mgut * wassay/Kgutcell/w
B13: blood clearance w/o flow limitation CLblood w/o flowlim,GIT [mLblood/h] | C13: =fublood/fugutS9assay*C9*gutSnine*mgut*wgutS9assay/wblood -> 2.776002678 | D13: = fu,blood/fu,gutS9-assay * CLin vitro * gutS9 * mgut * wassay/wblood
B14: blood clearance incl. flow lim. CLblood,GIT [mLblood/h] | C14: =(Qgut*fublood/fugutS9assay*C9*gutSnine*mgut*wgutS9assay/wblood)/(Qgut+fublood/fugutS9assay*C9*gutSnine*mgut*wgutS9assay/wblood) -> 2.126109422 | D14: = (Qgut * fu,blood/fu,gutS9-assay * CLin vitro * gutS9 * mgut * wassay/wblood) / (Qgut + fu,blood/fu,gutS9-assay * CLin vitro * gutS9* mgut * wassay/wblood)
B16: Whole-body GIT biotransformation rate constant kB,GIT (w/o flow lim.) [1/d] | C16: =(C13*Kbloodw/Korganismw)/mbody*24 -> 2.032339252 | D16: = (CLblood,GIT * Kblood/water / Korganism/water) / Vorganism * 24
B20: in vitro - in vivo extrapolation of gut cell assay data:
B22: assay clearance CLin vitro [mLassay/h/106cells] | C22: ='compound input data'!J53/'compound input data'!J54 -> 5 | D22: = kassay / Ccells,assay
B24: gut cell clearance CLgut [mLgut/h] | C24: =1/fugutcellassay*C22*gutcells*mgut*'compound input data'!J68/Kgutcellw -> 1.449640023 | D24: = 1/fu,gutcell-assay * CLin vitro * gutcells * mgut * wassay/Kgutcell/w
B26: blood clearance w/o flow limitation CLblood w/o flowlim,GIT [mLblood/h] | C26: =fublood/fugutcellassay*C22*gutcells*mgut*'compound input data'!J68/wblood -> 5.849821898 | D26: = fu,blood/fu,gutcell-assay * CLin vitro * gutcells * mgut * wassay/wblood
B27: blood clearance incl. flow lim. CLblood,GIT [mLblood/h] | C27: =(Qgut*fublood/fugutcellassay*C22*gutcells*mgut*'compound input data'!J68/wblood)/(Qgut+fublood/fugutcellassay*C22*gutcells*mgut*'compound input data'!J68/wblood) -> 3.557986326 | D27: = (Qgut * fu,blood/fu,gutcell-assay * CLin vitro * gutcells * mgut * wassay/wblood) / (Qgut + fu,blood/fu,gutcell-assay * CLin vitro * gutcells* mgut * wassay/wblood)
B29: Whole-body GIT biotransformation rate constant kB,GIT (w/o flow lim.) [1/d] | C29: =(C26*Kbloodw/Korganismw)/mbody*24 -> 4.282712967 | D29: = (CLblood,GIT * Kblood/water / Korganism/water) / Vorganism * 24
B32: The following value for kB,GIT is used for final BCF calculation:
B34: whole-body GIT biotransformation rate constant kB,GIT (w/o flow lim.) [1/d] | C34: 0
B37: The above calculated GIT biotransformation rate constant kB,GIT refers to whole-body concentration and
B38: is used in the one-compartment model.
B39: For the multi-compartment model (that represents the GIT as an extra compartment), this kB,GIT cannot be
B40: used. Instead, a GIT biotransformation rate constant that refers to chemical concentration in the GIT (and
B41: not to whole-body concentration) is required.
B42: This required GIT biotransformation rate constant kGIT,biotransf is calcuated from the above kB,GIT via adjusting
B43: the normalization as follows:
B44: GIT biotransformation rate constant kGIT,biotransf [1/d] | C44: =kBGIT*Korganismw/Kgutcellw*mbody/Vgut -> 0 | D44: = kB,GIT * Korganismw / Kgutcellw * Vbody / Vgut
B46: When the GIT is considered as an extra compartment, rate constants describing transport from GIT to body
B47: and vice versa ("kGIT,out" and "kGIT,in") are required. When no limitations due to slow permeation kinetics are
B48: assumed, this transport should solely depend on the blood flow rate.
B49: The rate constants can then be calculated from blood flow as follows:
B50: GIT-to-body rate constant kGIT,out [1/d] | C50: =Qgut*Kbloodw/Kgutcellw*1/Vgut*24 -> 438.9878793 | D50: = Qgut * Kblood/w / Kgutcells/w * 1/Vgut * 24
B51: body-to-GIT rate constant kGIT,in [1/d] | C51: =Qgut*Kbloodw/Kgillcellw*1/Vgills*24 -> 218.167986 | D51: = Qgut * Kblood/w / Kgillcells/w * 1/Vgills * 24

Sheet k2 - feces
B2: ="Calculation of the fecal egestion rate constant for "&'compound input data'!C5 -> Calculation of the fecal egestion rate constant for benzo[a]pyrene
B6: Fecal egestion rate constant kE [1/d] | D6: =0.125*(0.02*(mbody/1000)^-0.15*EXP(0.06*T))/(0.000000051*10^logKow+2) -> 0.006040582939 | E6: = 0.125*(0.02 * (mbody/1000)-0.15 * e(0.06*T)) / (0.000000051 * KOW + 2) from Arnot & Gobas 2003
B9: The above calculated fecal egestion rate constant kE refers to whole-body concentration and is used
B10: in the one-compartment model.
B11: For the multi-compartment model (that represents the GIT as an extra compartment), this kE cannot be
B12: used. Instead, a fecal egestion rate constant that refers to chemical concentration in the GIT (and not to
B13: whole-body concentration) is required.
B14: This required fecal egestion rate constant kGIT,feces is calcuated from the above kE via adjusting the
B15: normalization as follows:
B16: GIT fecal egestion rate constant kGIT,feces [1/d] | D16: =kE*Korganismw/Kgutcellw*mbody/Vgut -> 0.398833467 | E16: = kE * Korganism/w / Kgut/w * Vbody / Vgut

Sheet references
B2: References
B4: Arnold H, Pluta H-J, Braunbeck T (1995) Simultaneous exposure of fish to endosulfan and disulfoton in vivo: ultrastructural, stereological and biochemical reactions in hepatocytes of male rainbow trout (Oncorhynchus mykiss). Aquatic Toxicology 33(1):17-43 doi:https://doi.org/10.1016/0166-445X(95)00006-P
B5: Arnot JA, Gobas FAPC (2003) A Generic QSAR for Assessing the Bioaccumulation Potential of Organic Chemicals in Aquatic Food Webs. QSAR & Combinatorial Science 22(3):337-345 doi:10.1002/qsar.200390023
B6: Barron MG, Tarr BD, Hayton WL (1987) Temperature-dependence of cardiac output and regional blood flow in rainbow trout, Salmo gairdneri Richardson. Journal of Fish Biology 31(6):735-744 doi:10.1111/j.1095-8649.1987.tb05276.x
B7: Bertelsen SL, Hoffman AD, Gallinat CA, Elonen CM, Nichols JW (1998) Evaluation of log KOW and tissue lipid content as predictors of chemical partitioning to fish tissues. Environmental Toxicology and Chemistry 17(8):1447-1455 doi:10.1002/etc.5620170803
B8: Endo S, Brown TN, Goss K-U (2013) General model for estimating partition coefficients to organisms and their tissues using the biological compositions and polyparameter linear free energy relationships. Environmental Science & Technology 47(12):6630-6639 doi:10.1021/es401772m
B9: Erickson RJ, McKim JM (1990) A model for exchange of organic chemicals at fish gills: flow and diffusion limitations. Aquatic Toxicology 18(4):175-197
B10: Escher BI, Cowan-Ellsberry CE, Dyer S, et al. (2011) Protein and lipid binding parameters in rainbow trout (Oncorhynchus mykiss) blood and liver fractions to extrapolate from an in vitro metabolic degradation assay to in vivo bioaccumulation potential of hydrophobic organic chemicals. Chemical Research in Toxicology 24(7):1134-43
B11: Fitzsimmons PN, Fernandez JD, Hoffman AD, Butterworth BC, Nichols JW (2001) Branchial elimination of superhydrophobic organic compounds by rainbow trout (Oncorhynchus mykiss). Aquatic Toxicology 55(1–2):23-34 doi:https://doi.org/10.1016/S0166-445X(01)00174-6
B12: Gingerich WH, Pityer RA, Rach JJ (1987) Estimates of plasma, packed cell and total blood volume in tissues of the rainbow trout (Salmo gairdneri). Comparative Biochemistry and Physiology Part A: Physiology 87(2):251-256 doi:https://doi.org/10.1016/0300-9629(87)90119-8
B13: Gobas FAPC, Lee Y-S (2019) Growth-Correcting the Bioconcentration Factor and Biomagnification Factor in Bioaccumulation Assessments. Environmental Toxicology and Chemistry 38(9):2065-2072 doi:10.1002/etc.4509
B14: Hampton JA, Lantz RC, Hinton DE (1989) Functional units in rainbow trout (Salmo gairdneri, Richardson) liver: III. Morphometric analysis of parenchyma, stroma, and component cell types. American Journal of Anatomy 185(1):58-73 doi:10.1002/aja.1001850107
B15: Han X, Nabb DL, Mingoia RT, Yang C-H (2007) Determination of xenobiotic intrinsic clearance in freshly isolated hepatocytes from rainbow trout (Oncorhynchus mykiss) and rat and its application in bioaccumulation assessment. Environmental Science & Technology 41(9):3269-3276 doi:10.1021/es0626279
B16: Han X, Nabb DL, Yang C-H, Snajdr SI, Mingoia RT (2009) Liver microsomes and S9 from rainbow trout (Oncorhynchus mykiss): Comparison of basal-level enzyme activities with rat and determination of xenobiotic intrinsic clearance in support of bioaccumulation assessment. Environmental Toxicology and Chemistry 28(3):481-488 doi:10.1897/08-269.1
B17: Krause S, Goss K-U (2018b) In Vitro–in Vivo Extrapolation of Hepatic Metabolism for Different Scenarios-a Toolbox. Chemical research in toxicology
B18: Lee, Y.-S., et al., In vitro to in vivo extrapolation of biotransformation rates for assessing bioaccumulation of hydrophobic organic chemicals in mammals. Environmental Toxicology and Chemistry, 2017. 36(7): p. 1934-1946.
B19: Manera M, Britti D (2006) Assessment of blood chemistry normal ranges in rainbow trout. Journal of Fish Biology 69(5):1427-1434 doi:doi:10.1111/j.1095-8649.2006.01205.x
B20: Nichols J, Fitzsimmons P, Whiteman F, Kuehl D, Butterworth B, Jenson C (2001) Dietary uptake kinetics of 2, 2′, 5, 5′-tetrachlorobiphenyl in rainbow trout. Drug metabolism and disposition 29(7):1013-1022
B21: Nichols JW, Huggett DB, Arnot JA, Fitzsimmons PN, Cowan-Ellsberry CE (2013) Toward improved models for predicting bioconcentration of well-metabolized compounds by rainbow trout using measured rates of in vitro intrinsic clearance. Environmental Toxicology and Chemistry 32(7):1611-22 doi:10.1002/etc.2219
B22: Nichols JW, McKim JM, Andersen ME, Gargas ML, Clewell HJ, Erickson RJ (1990) A physiologically based toxicokinetic model for the uptake and disposition of waterborne organic chemicals in fish. Toxicology and Applied Pharmacology 106(3):433-447 doi:http://dx.doi.org/10.1016/0041-008X(90)90338-U
B23: OECD Test No. 305: Bioaccumulation in Fish: Aqueous and Dietary Exposure. OECD Publishing
B24: Schultz IR, Hayton WL (1999) Interspecies scaling of the bioaccumulation of lipophilic xenobiotics in fish: An example using trifluralin. Environmental Toxicology and Chemistry 18(7):1440-1449 doi:10.1002/etc.5620180714
B25: Sijm DTHM, Verberne ME, Dejonge WJ, Part P, Opperhuizen A (1995) Allometry in the uptake of hydrophobic chemicals determined in vivo and in isolated perfused gills. Toxicology and Applied Pharmacology 131(1):130-135 doi:http://dx.doi.org/10.1006/taap.1995.1054
B26: Sohlenius-Sternbeck A-K (2006) Determination of the hepatocellularity number for human, dog, rabbit, rat and mouse livers from protein concentration measurements. Toxicology in Vitro 20(8):1582-1586 doi:https://doi.org/10.1016/j.tiv.2006.06.003
B27: Stadnicka-Michalak J, Weiss FT, Fischer M, Tanneberger K, Schirmer K (2018) Biotransformation of benzo[a]pyrene by three rainbow trout (Onchorhynchus mykiss) cell lines and extrapolation to derive a fish bioconcentration factor. Environmental Science & Technology 52(5):3091-3100 doi:10.1021/acs.est.7b04548
B28: Ulrich N, Endo S., Brown T. N., Watanabe N., Bronner G., Abraham M. H., Goss K. U. (2017) UFZ-LSER database v 3.2 http://www.ufz.de/lserd
B29: Valentin J (2002) Basic anatomical and physiological data for use in radiological protection: reference values: ICRP Publication 89. Annals of the ICRP 32(3–4):1-277 doi:https://doi.org/10.1016/S0146-6453(03)00002-2
B30: Yamamoto T, Shima T, Furuita H, Suzuki N (2002) Influence of feeding diets with and without fish meal by hand and by self-feeders on feed intake, growth and nutrient utilization of juvenile rainbow trout (Oncorhynchus mykiss). Aquaculture 214(1):289-305 doi:http://dx.doi.org/10.1016/S0044-8486(02)00035-2

Sheet glossary
B2: Explanation of the used colours
B4: input data
B5: values used for final BCF calculation | C5: 1234
B6: interim results shown for information purposes only | C6: 1234
B7: IVIVE for hepatocyte in vitro data
B8: IVIVE for S9 in vitro data
B13: Explanation of the used variables
B15: CLblood,gills | C15: blood clearance due to gill biotransformation incl. flow limitation [mLblood/h]
B16: Cgills | C16: chemical steady state-concentration in gills [g/mLgills]
B17: CGIT | C17: chemical steady state-concentration in GIT [g/mLGIT]
B18: CLblood w/o flowlim,gills | C18: blood clearance due to gill biotransformation without flow limitation [mLblood/h]
B19: CLblood w/o flowlim,GIT | C19: blood clearance due to biotransformation in GITwithout flow limitation [mLblood/h]
B20: CLblood w/o flowlim,liver | C20: blood clearance due to hepatic biotransformation without flow limitation [mLblood/h]
B21: CLblood,GIT | C21: blood clearance due to biotransformation in GIT incl. flow limitation [mLblood/h]
B22: CLblood,liver | C22: blood clearance due to hepatic biotransformation incl. flow limitation [mLblood/h]
B23: CLgills | C23: gill cell clearance [mLgills/h]
B24: CLgut | C24: gut cell clearance [mLgut/h]
B25: CLhep | C25: hepatocyte clearance [mLhep/h]
B26: CLin vitro | C26: assay clearance [mLassay/h/mgS9 or mLassay/h/106 cells]
B27: Cliver | C27: chemical steady state-concentration in liver [g/mLliver]
B28: Crestbody | C28: chemical steady state-concentration in restbody [g/mLrestbody]
B29: CS9 in assay | C29: S9 concentration in assay [mgS9/mLassay]
B30: Cviable cells in assay | C30: concentration of viable cells in assay [* 106 cells/mLassay]
B31: CW | C31: total chemical concentration in fish tank water (in BCF study)
B32: CW,free | C32: freely dissolved chemical concentration in fish tank water (in BCF study)
B33: dgillcell | C33: gill cell diameter [cm]
B34: dgutcell | C34: gut cell diameter [cm]
B35: dhep | C35: hepatocyte diameter [cm]
B36: fu,blood | C36: unbound fraction in blood [unitless]
B37: fu,exposure media | C37: unbound fraction in fish exposure media (i.e. in fish tank water) [unitless]
B38: fu,gillcell-assay | C38: unbound fraction in gillcell assay
B39: fu,gillS9-assay | C39: unbound fraction in gill S9 assay [unitless]
B40: fu,gutcell-assay | C40: unbound fraction in gutcell assay
B41: fu,gutS9-assay | C41: unbound fraction in gut S9 assay [unitless]
B42: fu,hep-assay | C42: unbound fraction in hepatocyte assay [unitless]
B43: fu,liverS9-assay | C43: unbound fraction in liver S9 assay [unitless]
B44: Gcells | C44: cell content in gills [106 cells/ggills]
B45: GFBW | C45: fractional gill weight [ggills/gfish]
B46: GS9 | C46: gill S9 protein content [mg/ggill]
B47: Gutcells | C47: cell content in gut [106 cells/gGIT]
B48: GutFBW | C48: fractional intestine weight [ggut/gfish]
B49: GutS9 | C49: gut S9 protein content [mg/ggut]
B50: k1 | C50: gill uptake rate constant [L/kg/d]
B51: kassay | C51: first-order biotransformation rate constant determined in assay [1/h]
B52: KAW | C52: albumin-water partition coefficient [LH2O/Lalbumin]
B53: kB,GILLS | C53: whole-body gill biotransformation rate constant kB,GILLS [1/d]
B54: kB,GIT | C54: whole-body GIT biotransformation rate constant [1/d]
B55: kB,LIVER | C55: whole-body biotransformation rate constant [1/d]
B56: Kblood/W | C56: blood-water partition coefficient [LH2O/Lblood]
B57: kE | C57: fecal egestion rate constant [1/d]
B58: kFEED | C58: feeding rate [kgfood/d/kgfish]
B59: Kgillcells/W | C59: gill cell-water partition coefficient [LH2O/Lgillcell]
B60: kgills,biotransf | C60: gill biotransformation rate constant referring to gill concentration [1/d]
B61: kgills,in | C61: rate constant describing transport from body to gills [1/d]
B62: kgills,out | C62: rate constant describing transport from gills to body rate constant [1/d]
B63: kgills,ventilation | C63: "gill-based" ventilation rate constant [1/d]
B64: kGIT,feces | C64: GIT fecal egestion rate constant [1/d]
B65: kGIT,in | C65: rate constant describing transport from body to GIT [1/d]
B66: kGIT,out | C66: rate constant describing transport from GIT to body rate constant [1/d]
B67: Kgutcells/W | C67: gut cell-water partition coefficient [LH2O/Lgutcell]
B68: Khep/W | C68: hepatocyte-water partition coefficient [LH2O/Lhep]
B69: kliver,biotransf | C69: liver biotransformation rate constant referring to liver concentration [1/d]
B70: kliver,in | C70: rate constant describing transport from body to liver [1/d]
B71: kliver,out | C71: rate constant describing transport from liver to body rate constant [1/d]
B72: KMW | C72: membrane lipid-water partition coefficient [LH2O/Lmembrane lip]
B73: Korganism/W | C73: organism-water partition coefficient [LH2O/LOrg]
B74: KOW | C74: octanol-water partition coefficient [LH2O/Loctanol]
B75: KPW | C75: protein-water partition coefficient [LH2O/LProtein]
B76: Krestbody/W [LH2O/Lrestbody] | C76: rest body-water partition coefficient [LH2O/Lrestbody]
B77: KS9/H2O | C77: S9-water partition coefficient [LH2O/LS9]
B78: KSW | C78: storage lipid-water partition coefficient [LH2O/Lstorage lip]
B79: kV | C79: whole-body ventilation elimination rate constant [1/d] (also called branchial elimination rate constant)
B80: KWW | C80: water-water partition coefficient (always = 1) [LH2O/LH2O]
B81: LFBW | C81: fractional liver weight [gliver/gfish]
B82: LHEP | C82: liver hepatocyte content [106 cells/gliver]
B83: lipidhepassay (or lipidblood or lipidhep …) | C83: lipid content of hepatocyte assay (or blood or hepatocytes …)
B84: LS9 | C84: liver S9 protein content [mg/gliver]
B85: mbody | C85: bodyweight [gfish]
B86: mgills | C86: gill weight [ggills]
B87: mgut | C87: gut weight [ggut]
B88: mliver | C88: liver weight [gliver]
B89: proteinhepassay (or proteinblood or proteinhep …) | C89: protein content of hepatocyte assay (or blood or hepatocytes …)
B90: Qbody | C90: blood flow rate to rest of body [mLblood/h]
B91: QC | C91: temperature adjusted cardiac output [L/d/kgfish]
B92: QGFRAC | C92: intestinal blood flow as fraction of cardiac output [unitless]
B93: Qgills | C93: gill blood flow rate [mLblood/h]
B94: Qgills, bodyweight | C94: gill blood flow rate per bodyweight [mLblood/h/gfish]
B95: Qgut | C95: gut blood flow rate [mLblood/h]
B96: Qgut, bodyweight | C96: gut blood flow rate per bodyweight [mLblood/h/gfish]
B97: QHFRAC | C97: liver blood flow as fraction of cardiac output [unitless]
B98: Qliver | C98: arterial liver blood flow [mL/h]
B99: Qliver,bodyweight | C99: liver blood flow per bodyweight [L/d/kgfish]
B100: Qliver-total | C100: total liver blood flow [mL/h]
B101: Vassay | C101: total assay volume [mLassay]
B102: Vgillcells | C102: total cell volume present in gill cell assay [mLcells]
B103: Vgills | C103: gill volume Vgills [mLgills]
B104: Vgut | C104: gut volume Vgut in [mLgut]
B105: Vgutcells | C105: total cell volume present in gutcell assay [mLcells]
B106: Vhep | C106: total hepatocyte volume present in assay [mLhep]
B107: Vorganism = mbody | C107: volume of body [mLbody], density of 1 assumed!
B108: Vrestbody | C108: volume of restbody [mLrestbody]
B109: VS9 | C109: S9 volume present in assay [mL]
B110: whepassay (or wblood or whep …) | C110: water content of assay (or blood or hepatocytes …)
B111: ρS9 | C111: S9 density [g/mL]

Sheet BAF
M1: in g/d | N1: % of total uptake
B2: ="Calculation of the BAF for "&'compound input data'!C5 -> Calculation of the BAF for benzo[a]pyrene | K2: chemical mass taken up - ventilation | M2: =kone*Cwfree*mbody -> 2488.87648 | N2: =M2/(M2+M3) -> 0.1265572051
K3: chemical mass taken up - food | M3: =kGITuptake*Cfood*mbody -> 17177.14316 | N3: =M3/(M2+M3) -> 0.8734427949
Q4: in g/d | R4: % of uptake
B5: In case chemical uptake from the diet should also be considered, i.e. the BAF instead of the BCF | K5: one-compartment model | P5: multi-compartment model
B6: should be calculated, additional input data is required: | K6: mass eliminated via ventilation | M6: =kV*D50*Cwfree*mbody -> 16.50502467 | N6: =M6/($M$2+$M$3) -> 0.0008392661541 | P6: mass eliminated via ventilation | Q6: =kgillsventilation*B35*Vgills -> 15.20691485 | R6: =Q6/($M$2+$M$3) -> 0.0007732583987
B7: feeding rate kFEED [kgfood/kgfish/d] | D7: 0.02 | E7: from OECD Guideline 305 (Annex 7) | K7: mass transformed in gills | M7: =D50*kBGILLS*Cwfree*mbody -> 10257.40223 | N7: =M7/($M$2+$M$3) -> 0.5215799853 | P7: mass transformed in gills | Q7: =kgillsbiotransf*B35*Vgills -> 9450.663996 | R7: =Q7/($M$2+$M$3) -> 0.4805580474
K8: mass transformed in liver | M8: =kBLIVER*D50*Cwfree*mbody -> 9357.708088 | N8: =M8/($M$2+$M$3) -> 0.4758313202 | P8: mass transformed in liver | Q8: =kliverbiotransf*C35*Vhepliver -> 10152.88731 | R8: 0.5162654921
B9: For simplicity, we assume the fish food to be of identical composition like the fish, i.e. we predict | K9: mass transformed in GIT | M9: =D50*kBGIT*Cwfree*mbody -> 0 | N9: 0 | P9: mass transformed in GIT | Q9: =D35*kGITbiotransf*Vgut -> 0 | R9: 0
B10: the BAF for a predatory fish and we assume an uptake efficiency of 100%. | K10: mass eliminated via feces | M10: =kE*D50*Cwfree*mbody -> 34.40429202 | N10: 0.001749428337 | P10: mass eliminated via feces | Q10: =kGITfeces*D35*Vgut -> 47.26142009 | R10: 0.00240320212
B11: Kfood/water [mLw/gfood] | D11: =Korganismw -> 85885.71578
B12: chemical concentration in fish food Cfood [gchemical/gfood] | D12: =Cwfree*D11 -> 85885.71578 | K12: steady state Cfree in fish | M12: =(D50*Cwfree)/Korganismw -> 0.006631516188
B13: Note that the assumption of thermodynamic equilibrium between food and surrounding water represents
B14: a worst-case estimation (biotransformation in the prey is neglected).
B16: Kinetic BAFs based on total chemical concentration in fish exposure water:
B17: a) Classical one-compartment model (no flow limitations):
B18: kinetic BAFone-compartment [Lwater/kgfish] | D18: =((kone+kGITuptake*Cfood/Cwfree)*'compound input data'!D119)/(kV+kBLIVER+kE+kBGILLS+kBGIT) -> 523.884491 | E18: = ((k1 + kFEED *Cfood/CW,free) * fu,exposure media)/(kV+kB,LIVER+kE+kB,GILLS+kB,GIT)
B20: b) Multi-compartment model:
B21: The multi-compartment model distinguishes the four compartments gills, liver, GIT and
B22: rest of the body. By this, the model can represent the potential first pass effect in the gills
B23: and the direct blood flow from GIT to liver.
B24: For every compartment, a mass balance is set up containing all uptake
B25: and elimination processes applying to the respective compartment. This linear system of
B26: equations is then solved via the Gaussian elimination method.
B27: The linear system of equations is written into the following 4x4-matrix: | F27: Cgills | G27: Cliver | H27: CGIT | I27: Crestbody
E28: I | F28: =kbodyin*Vgills -> 174.0024 | G28: 0 | H28: 0 | I28: =-kbodyout*mrestbody -> -216.6310347 | J28: 0
E29: II | F29: =kliverin*Vgills -> 6.806407324 | G29: =-((kliverbiotransf+kliverout)*Vhepliver) -> -74.16579106 | H29: =kGITout*Vgut -> 54.01224532 | I29: 0 | J29: 0
E30: III | F30: =kGITin*Vgills -> 54.01224532 | G30: 0 | H30: =-(kGITbiotransf+kGITfeces+kGITout)*Vgut -> -54.06131704 | I30: 0 | J30: =-kGITuptake*mbody*Cfood -> -17177.14316
E31: IV | F31: =-(kgillsventilation+kgillsbiotransf+kbodyin+kliverin+kGITin)*Vgills -> -249.4749894 | G31: =kliverout*Vhepliver -> 60.81865265 | H31: 0 | I31: =kbodyout*mrestbody -> 216.6310347 | J31: =-kone*mbody*Cwfree -> -2488.87648
B33: Solution of the mass balance equations yields the steady state-concentrations in gills, liver, GIT and rest body:
B34: Cgills | C34: Cliver | D34: CGIT | E34: Crestbody
B35: =TRANSPOSE(MMULT(MINVERSE(F28:I31),J28:J31)) -> 645.9609517 | C35: 760.6789556 | D35: 963.1090657 | E35: 518.8488164
B37: Combination of the steady state-concentrations in the four compartments yields the BCF:
B38: kinetic BAFmulti-compartment [Lwater/kgfish] | D38: =(D35*Vgut+C35*Vhepliver+B35*Vgills+E35*mrestbody)/mbody / Cwtotal -> 487.264925 | E38: =(Cgills*Vgills + Cliver*Vliver + CGIT*VGIT + Crestbody*Vrestbody) / mbody / Cw
B41: By combining the steady state concentrations with the respective tissue-water partition coefficients, one can
B42: calculate the corresponding aqueous concentrations to see whether there is equilibrium between the tissues.
B43: C in gill-water [g/mL] | C43: C in liver-water [g/mL] | D43: C in GIT-water [g/mL] | E43: C in restbody-water [g/mL]
B44: =B35/Kgillcellw -> 0.006109951609 | C44: =C35/Khepw -> 0.007195034926 | D44: =D35/Kgutcellw -> 0.009109760845 | E44: =E35/Krestorganismw -> 0.006109951609
B46: Kinetic BAFs based on freely dissolved chemical concentration in
B47: fish exposure water:
B49: a) Classical one-compartment model (no mass transfer limitations):
B50: kinetic BAFone-compartment [Lwater/kgfish] | D50: =(kone+kGITuptake*Cfood/Cwfree)/(kV+kBLIVER+kE+kBGILLS+kBGIT) -> 569.5525145 | E50: = (k1+kFEED * Cfood/CW,free) /(kV+kB,LIVER+kE+kB,GILLS+kB,GIT)
B52: b) Multi-compartment model:
B53: kinetic BAFmulti-compartment [Lwater/kgfish] | D53: =(D35*Vgut+C35*Vhepliver+B35*Vgills+E35*mrestbody)/mbody / Cwfree -> 529.7407502 | E53: =(Cgills*Vgills + Cliver*Vliver + CGIT*VGIT + Crestbody*Vrestbody) / mbody / Cw
